[Event "Titled Tuesday Blitz January 17 Early 2023"]
[White "Odegov, Artem"]
[Black "Indjic, Aleksandar"]
[WhiteFideId "34183644"]
[BlackFideId "911925"]
[WhiteElo "2261"]
[BlackElo "2618"]
[Result "0-1"]
[Round "03"]
[TimeControl "180+2"]
[Date "2023.01.17"]
[WhiteClock "0:00:03"]
[BlackClock "0:00:11"]

1. d4 {[%clk 0:03:00]}  Nf6 {[%clk 0:03:00]} 2. c4 {[%clk 0:03:00]}  c5 {[%clk 0:03:00]} 3. d5 {[%clk 0:03:00]}  b5 {[%clk 0:03:01]} 4. cxb5 {[%clk 0:03:01]}  a6 {[%clk 0:03:00]} 5. b6 {[%clk 0:03:02]}  d6 {[%clk 0:03:00]} 6. Nc3 {[%clk 0:03:02]}  Nbd7 {[%clk 0:03:00]} 7. e4 {[%clk 0:03:02]}  g6 {[%clk 0:03:00]} 8. a4 {[%clk 0:03:03]}  Qxb6 {[%clk 0:02:59]} 9. a5 {[%clk 0:03:03]}  Qa7 {[%clk 0:02:59]} 10. Bc4 {[%clk 0:03:03]}  Rb8 {[%clk 0:02:59]} 11. f4 {[%clk 0:03:03]}  Rb4 {[%clk 0:02:58]} 12. Qe2 {[%clk 0:03:03]}  Bg7 {[%clk 0:02:47]} 13. Nf3 {[%clk 0:03:02]}  O-O {[%clk 0:02:43]} 14. O-O {[%clk 0:03:01]}  Qb8 {[%clk 0:02:40]} 15. h3 {[%clk 0:02:41]}  Ne8 {[%clk 0:01:52]} 16. Re1 {[%clk 0:02:26]}  Nc7 {[%clk 0:01:51]} 17. Ra4 {[%clk 0:01:07]}  Rxa4 {[%clk 0:01:43]} 18. Nxa4 {[%clk 0:01:07]}  Qb4 {[%clk 0:01:43]} 19. b3 {[%clk 0:01:02]}  Qb7 {[%clk 0:01:24]} 20. Bd2 {[%clk 0:00:55]}  Nb5 {[%clk 0:01:21]} 21. Kh2 {[%clk 0:00:47]}  Nd4 {[%clk 0:01:16]} 22. Nxd4 {[%clk 0:00:46]}  Bxd4 {[%clk 0:01:17]} 23. Qd3 {[%clk 0:00:45]}  Bg7 {[%clk 0:01:01]} 24. g4 {[%clk 0:00:20]}  h6 {[%clk 0:00:53]} 25. Bc3 {[%clk 0:00:08]}  Bxc3 {[%clk 0:00:51]} 26. Qxc3 {[%clk 0:00:09]}  Nf6 {[%clk 0:00:36]} 27. Qf3 {[%clk 0:00:05]}  Qb4 {[%clk 0:00:34]} 28. Re2 {[%clk 0:00:03]}  Qxa5 {[%clk 0:00:34]} 29. e5 {[%clk 0:00:03]}  Ne8 {[%clk 0:00:34]} 30. f5 {[%clk 0:00:03]}  dxe5 {[%clk 0:00:30]} 31. Rxe5 {[%clk 0:00:02]}  Qc7 {[%clk 0:00:29]} 32. Qg3 {[%clk 0:00:03]}  gxf5 {[%clk 0:00:16]} 33. gxf5+ {[%clk 0:00:04]}  Ng7 {[%clk 0:00:15]} 34. Nc3 {[%clk 0:00:02]}  Bxf5 {[%clk 0:00:12]} 35. Be2 {[%clk 0:00:01]}  Bg6 {[%clk 0:00:12]} 36. Ne4 {[%clk 0:00:01]}  Bxe4 {[%clk 0:00:11]} 37. Rxe4 {[%clk 0:00:02]}  Qxg3+ {[%clk 0:00:11]} 38. Kxg3 {[%clk 0:00:03]}  Nf5+ {[%clk 0:00:10]} 39. Kf4 {[%clk 0:00:03]}  Nd4 {[%clk 0:00:09]} 40. Bxa6 {[%clk 0:00:03]}  e6 {[%clk 0:00:09]} 41. dxe6 {[%clk 0:00:03]}  fxe6+ {[%clk 0:00:09]} 42. Ke5 {[%clk 0:00:03]}  Rd8 {[%clk 0:00:09]} 43. Bc4 {[%clk 0:00:03]}  Kf7 {[%clk 0:00:09]} 44. Rf4+ {[%clk 0:00:03]}  Ke7 {[%clk 0:00:10]} 45. Rg4 {[%clk 0:00:02]}  Nc6+ {[%clk 0:00:10]} 46. Kf4 {[%clk 0:00:02]}  Rd4+ {[%clk 0:00:11]} 47. Kf3 {[%clk 0:00:03]}  Ne5+ {[%clk 0:00:11]} 0-1


[Site "https://www.chess.com"]

[Event "Titled Tuesday Blitz January 17 Early 2023"]
[White "Martynov, Pavel"]
[Black "Gareyev, Timur"]
[WhiteFideId "4101260"]
[BlackFideId "14200937"]
[WhiteElo "2414"]
[BlackElo "2617"]
[Result "0-1"]
[Round "03"]
[TimeControl "180+2"]
[Date "2023.01.17"]
[WhiteClock "0:00:04"]
[BlackClock "0:00:10"]

1. e4 {[%clk 0:03:00]}  d6 {[%clk 0:02:11]} 2. d4 {[%clk 0:03:00]}  g6 {[%clk 0:02:08]} 3. Nc3 {[%clk 0:03:00]}  a6 {[%clk 0:02:06]} 4. g3 {[%clk 0:03:00]}  b5 {[%clk 0:02:05]} 5. a3 {[%clk 0:03:00]}  Bb7 {[%clk 0:02:05]} 6. Bg2 {[%clk 0:03:00]}  Nd7 {[%clk 0:02:04]} 7. Nge2 {[%clk 0:03:01]}  e5 {[%clk 0:02:03]} 8. O-O {[%clk 0:03:00]}  Bg7 {[%clk 0:02:03]} 9. Be3 {[%clk 0:02:57]}  Ngf6 {[%clk 0:02:02]} 10. h3 {[%clk 0:02:58]}  c5 {[%clk 0:02:00]} 11. dxe5 {[%clk 0:02:30]}  Nxe5 {[%clk 0:01:56]} 12. f4 {[%clk 0:02:30]}  Nc4 {[%clk 0:01:56]} 13. Bc1 {[%clk 0:02:30]}  Qe7 {[%clk 0:01:49]} 14. b3 {[%clk 0:02:00]}  Nb6 {[%clk 0:01:45]} 15. e5 {[%clk 0:01:35]}  dxe5 {[%clk 0:01:40]} 16. Bxb7 {[%clk 0:01:31]}  Qxb7 {[%clk 0:01:37]} 17. fxe5 {[%clk 0:01:31]}  Rd8 {[%clk 0:01:34]} 18. Qe1 {[%clk 0:01:20]}  Ne4 {[%clk 0:01:26]} 19. Nxe4 {[%clk 0:01:04]}  Qxe4 {[%clk 0:01:24]} 20. Nf4 {[%clk 0:01:04]}  Qc6 {[%clk 0:01:08]} 21. Bb2 {[%clk 0:00:58]}  O-O {[%clk 0:01:07]} 22. Qf2 {[%clk 0:00:53]}  c4 {[%clk 0:01:07]} 23. Bd4 {[%clk 0:00:47]}  Nd5 {[%clk 0:01:02]} 24. Rad1 {[%clk 0:00:43]}  Nxf4 {[%clk 0:00:49]} 25. Qxf4 {[%clk 0:00:40]}  Rd5 {[%clk 0:00:46]} 26. b4 {[%clk 0:00:33]}  c3 {[%clk 0:00:46]} 27. Bc5 {[%clk 0:00:32]}  Bxe5 {[%clk 0:00:45]} 28. Qf3 {[%clk 0:00:29]}  Rxc5 {[%clk 0:00:44]} 29. bxc5 {[%clk 0:00:27]}  Qxc5+ {[%clk 0:00:45]} 30. Kg2 {[%clk 0:00:27]}  Qxa3 {[%clk 0:00:37]} 31. Rd7 {[%clk 0:00:27]}  Qa2 {[%clk 0:00:37]} 32. Rf2 {[%clk 0:00:25]}  a5 {[%clk 0:00:34]} 33. Qe2 {[%clk 0:00:22]}  Qe6 {[%clk 0:00:30]} 34. Qxb5 {[%clk 0:00:21]}  Bd6 {[%clk 0:00:17]} 35. Rb7 {[%clk 0:00:12]}  Qe4+ {[%clk 0:00:15]} 36. Kh2 {[%clk 0:00:12]}  Qe3 {[%clk 0:00:13]} 37. Rg2 {[%clk 0:00:10]}  h5 {[%clk 0:00:14]} 38. h4 {[%clk 0:00:09]}  Qe4 {[%clk 0:00:14]} 39. Kh3 {[%clk 0:00:07]}  a4 {[%clk 0:00:14]} 40. Kh2 {[%clk 0:00:08]}  Qxh4+ {[%clk 0:00:13]} 41. Kg1 {[%clk 0:00:08]}  Bxg3 {[%clk 0:00:13]} 42. Qb4 {[%clk 0:00:07]}  Qg5 {[%clk 0:00:11]} 43. Qb1 {[%clk 0:00:01]}  Qe3+ {[%clk 0:00:11]} 44. Kh1 {[%clk 0:00:01]}  Qe4 {[%clk 0:00:12]} 45. Rb4 {[%clk 0:00:01]}  Qf3 {[%clk 0:00:11]} 46. Kg1 {[%clk 0:00:01]}  h4 {[%clk 0:00:11]} 47. Qf1 {[%clk 0:00:01]}  Qe3+ {[%clk 0:00:11]} 48. Kh1 {[%clk 0:00:02]}  h3 {[%clk 0:00:11]} 49. Rxg3 {[%clk 0:00:01]}  Qxg3 {[%clk 0:00:11]} 50. Rd4 {[%clk 0:00:02]}  Re8 {[%clk 0:00:11]} 51. Rd3 {[%clk 0:00:02]}  Re1 {[%clk 0:00:09]} 52. Rxg3 {[%clk 0:00:03]}  Rxf1+ {[%clk 0:00:10]} 53. Kh2 {[%clk 0:00:03]}  a3 {[%clk 0:00:10]} 54. Kxh3 {[%clk 0:00:04]}  a2 {[%clk 0:00:10]} 55. Rxc3 {[%clk 0:00:05]}  a1=Q {[%clk 0:00:10]} 56. Rc8+ {[%clk 0:00:04]}  Kg7 {[%clk 0:00:10]} 0-1


[Site "https://www.chess.com"]

[Event "Titled Tuesday Blitz January 17 Early 2023"]
[White "Padmini, Rout"]
[Black "Postny, Evgeny"]
[WhiteFideId "5029295"]
[BlackFideId "2804344"]
[WhiteElo "2375"]
[BlackElo "2549"]
[Result "0-1"]
[Round "03"]
[TimeControl "180+2"]
[Date "2023.01.17"]
[WhiteClock "0:00:01"]
[BlackClock "0:00:11"]

1. e4 {[%clk 0:03:00]}  c5 {[%clk 0:02:28]} 2. Nf3 {[%clk 0:03:00]}  Nc6 {[%clk 0:02:28]} 3. d4 {[%clk 0:02:58]}  cxd4 {[%clk 0:02:29]} 4. Nxd4 {[%clk 0:02:59]}  Qb6 {[%clk 0:02:29]} 5. Nb3 {[%clk 0:02:57]}  e6 {[%clk 0:02:29]} 6. Nc3 {[%clk 0:02:57]}  Nf6 {[%clk 0:02:29]} 7. Qe2 {[%clk 0:02:54]}  Bb4 {[%clk 0:02:27]} 8. Bd2 {[%clk 0:02:54]}  d6 {[%clk 0:02:26]} 9. g4 {[%clk 0:02:51]}  O-O {[%clk 0:02:22]} 10. g5 {[%clk 0:02:49]}  Nd7 {[%clk 0:02:21]} 11. O-O-O {[%clk 0:02:48]}  a5 {[%clk 0:02:17]} 12. a4 {[%clk 0:02:47]}  Nc5 {[%clk 0:02:11]} 13. Nxc5 {[%clk 0:02:43]}  Bxc5 {[%clk 0:02:09]} 14. f4 {[%clk 0:02:40]}  Bd7 {[%clk 0:01:58]} 15. Qh5 {[%clk 0:02:35]}  Rfc8 {[%clk 0:01:45]} 16. Bb5 {[%clk 0:02:34]}  Bd4 {[%clk 0:01:31]} 17. f5 {[%clk 0:02:25]}  g6 {[%clk 0:01:29]} 18. Qh4 {[%clk 0:02:13]}  Bg7 {[%clk 0:01:26]} 19. f6 {[%clk 0:02:00]}  Bf8 {[%clk 0:01:26]} 20. Bf4 {[%clk 0:01:37]}  Qc5 {[%clk 0:01:01]} 21. Qg3 {[%clk 0:01:32]}  Nd4 {[%clk 0:00:30]} 22. Be3 {[%clk 0:00:37]}  e5 {[%clk 0:00:19]} 23. Bxd4 {[%clk 0:00:36]}  exd4 {[%clk 0:00:19]} 24. Bxd7 {[%clk 0:00:34]}  dxc3 {[%clk 0:00:20]} 25. Bxc8 {[%clk 0:00:32]}  cxb2+ {[%clk 0:00:18]} 26. Kb1 {[%clk 0:00:14]}  Rxc8 {[%clk 0:00:19]} 27. Rd2 {[%clk 0:00:11]}  d5 {[%clk 0:00:19]} 28. e5 {[%clk 0:00:09]}  Qb4 {[%clk 0:00:13]} 29. Rxd5 {[%clk 0:00:01]}  Qxa4 {[%clk 0:00:11]} 0-1


[Site "https://www.chess.com"]

[Event "Titled Tuesday Blitz January 17 Early 2023"]
[White "Goldin, Alexander"]
[Black "Rozman, Levy"]
[WhiteFideId "2019540"]
[BlackFideId "2039877"]
[WhiteElo "2542"]
[BlackElo "2322"]
[Result "0-1"]
[Round "03"]
[TimeControl "180+2"]
[Date "2023.01.17"]
[WhiteClock "0:00:10"]
[BlackClock "0:00:08"]

1. d4 {[%clk 0:02:59]}  g6 {[%clk 0:02:52]} 2. Nf3 {[%clk 0:02:58]}  Bg7 {[%clk 0:02:53]} 3. e4 {[%clk 0:02:57]}  d6 {[%clk 0:02:53]} 4. Nbd2 {[%clk 0:02:57]}  a6 {[%clk 0:02:53]} 5. c3 {[%clk 0:02:55]}  Nc6 {[%clk 0:02:53]} 6. d5 {[%clk 0:02:46]}  Nb8 {[%clk 0:02:52]} 7. g3 {[%clk 0:02:43]}  e5 {[%clk 0:02:52]} 8. dxe6 {[%clk 0:02:43]}  Bxe6 {[%clk 0:02:52]} 9. Bg2 {[%clk 0:02:43]}  Nc6 {[%clk 0:02:52]} 10. O-O {[%clk 0:02:44]}  Qd7 {[%clk 0:02:52]} 11. Ng5 {[%clk 0:02:38]}  Bg4 {[%clk 0:02:52]} 12. f3 {[%clk 0:02:37]}  Be6 {[%clk 0:02:37]} 13. Nxe6 {[%clk 0:02:34]}  fxe6 {[%clk 0:02:33]} 14. Bh3 {[%clk 0:02:25]}  O-O-O {[%clk 0:02:26]} 15. Nb3 {[%clk 0:02:18]}  Kb8 {[%clk 0:02:24]} 16. Nd4 {[%clk 0:02:17]}  Nxd4 {[%clk 0:02:22]} 17. cxd4 {[%clk 0:02:16]}  Qf7 {[%clk 0:02:11]} 18. Be3 {[%clk 0:02:14]}  d5 {[%clk 0:02:05]} 19. e5 {[%clk 0:02:02]}  Ne7 {[%clk 0:02:05]} 20. Bg5 {[%clk 0:02:02]}  h6 {[%clk 0:02:03]} 21. Bxe7 {[%clk 0:02:02]}  Qxe7 {[%clk 0:02:04]} 22. Rc1 {[%clk 0:02:02]}  h5 {[%clk 0:02:03]} 23. Rf2 {[%clk 0:01:54]}  h4 {[%clk 0:02:02]} 24. Kg2 {[%clk 0:01:48]}  Bh6 {[%clk 0:01:46]} 25. Rc3 {[%clk 0:01:46]}  hxg3 {[%clk 0:01:15]} 26. hxg3 {[%clk 0:01:45]}  Rh7 {[%clk 0:01:09]} 27. Rf1 {[%clk 0:01:16]}  Rf8 {[%clk 0:01:05]} 28. Rh1 {[%clk 0:01:16]}  Rfh8 {[%clk 0:00:51]} 29. Bg4 {[%clk 0:01:14]}  Bd2 {[%clk 0:00:42]} 30. Bh3 {[%clk 0:00:27]}  Bxc3 {[%clk 0:00:39]} 31. bxc3 {[%clk 0:00:28]}  Qa3 {[%clk 0:00:33]} 32. Qc2 {[%clk 0:00:27]}  Qa5 {[%clk 0:00:29]} 33. a4 {[%clk 0:00:17]}  Qb6 {[%clk 0:00:25]} 34. Rh2 {[%clk 0:00:15]}  c5 {[%clk 0:00:23]} 35. dxc5 {[%clk 0:00:10]}  Qxc5 {[%clk 0:00:23]} 36. Rh1 {[%clk 0:00:11]}  Ka7 {[%clk 0:00:23]} 37. Qd2 {[%clk 0:00:10]}  Qc4 {[%clk 0:00:22]} 38. g4 {[%clk 0:00:10]}  Qxa4 {[%clk 0:00:19]} 39. Kg3 {[%clk 0:00:11]}  Qc4 {[%clk 0:00:15]} 40. Qf2+ {[%clk 0:00:11]}  Ka8 {[%clk 0:00:15]} 41. Qd2 {[%clk 0:00:12]}  Qc5 {[%clk 0:00:15]} 42. Bg2 {[%clk 0:00:12]}  Rxh1 {[%clk 0:00:15]} 43. Bxh1 {[%clk 0:00:12]}  Rxh1 {[%clk 0:00:14]} 44. Kf4 {[%clk 0:00:12]}  g5+ {[%clk 0:00:11]} 45. Kxg5 {[%clk 0:00:12]}  Rh8 {[%clk 0:00:11]} 46. Kf4 {[%clk 0:00:12]}  Rf8+ {[%clk 0:00:11]} 47. Kg3 {[%clk 0:00:12]}  Rd8 {[%clk 0:00:10]} 48. Kf4 {[%clk 0:00:12]}  d4 {[%clk 0:00:10]} 49. g5 {[%clk 0:00:10]}  Qxc3 {[%clk 0:00:08]} 0-1


[Site "https://www.chess.com"]

[Event "Titled Tuesday Blitz January 17 Early 2023"]
[White "Domingo Nunez, Ruben"]
[Black "Qashashvili, Alexandre"]
[WhiteFideId "22245570"]
[BlackFideId "13600842"]
[WhiteElo "2416"]
[BlackElo "2505"]
[Result "1-0"]
[Round "03"]
[TimeControl "180+2"]
[Date "2023.01.17"]
[WhiteClock "0:00:10"]
[BlackClock "0:00:03"]

1. e4 {[%clk 0:03:00]}  c6 {[%clk 0:02:56]} 2. Nf3 {[%clk 0:02:54]}  d5 {[%clk 0:02:55]} 3. Nc3 {[%clk 0:02:54]}  dxe4 {[%clk 0:02:55]} 4. Nxe4 {[%clk 0:02:55]}  Nd7 {[%clk 0:02:55]} 5. Qe2 {[%clk 0:02:53]}  Ndf6 {[%clk 0:02:54]} 6. b3 {[%clk 0:02:52]}  Nxe4 {[%clk 0:02:54]} 7. Qxe4 {[%clk 0:02:53]}  Nf6 {[%clk 0:02:54]} 8. Qh4 {[%clk 0:02:54]}  Bf5 {[%clk 0:02:52]} 9. Bb2 {[%clk 0:02:49]}  e6 {[%clk 0:02:52]} 10. h3 {[%clk 0:02:47]}  Bxc2 {[%clk 0:02:42]} 11. Bc4 {[%clk 0:02:40]}  Bd3 {[%clk 0:02:35]} 12. Bxd3 {[%clk 0:02:28]}  Qxd3 {[%clk 0:02:34]} 13. Bxf6 {[%clk 0:02:29]}  gxf6 {[%clk 0:02:33]} 14. Qxf6 {[%clk 0:02:30]}  Rg8 {[%clk 0:02:32]} 15. Qxf7+ {[%clk 0:01:48]}  Kxf7 {[%clk 0:02:28]} 16. Ne5+ {[%clk 0:01:49]}  Kf6 {[%clk 0:02:22]} 17. Nxd3 {[%clk 0:01:50]}  Rxg2 {[%clk 0:02:21]} 18. Kf1 {[%clk 0:01:42]}  Rg5 {[%clk 0:02:15]} 19. Ke2 {[%clk 0:01:37]}  Bd6 {[%clk 0:02:12]} 20. Rhg1 {[%clk 0:01:35]}  Rag8 {[%clk 0:02:11]} 21. Rxg5 {[%clk 0:01:33]}  Rxg5 {[%clk 0:02:10]} 22. Rh1 {[%clk 0:01:27]}  h5 {[%clk 0:02:08]} 23. Nb2 {[%clk 0:01:23]}  Re5+ {[%clk 0:02:07]} 24. Kd1 {[%clk 0:01:22]}  Rf5 {[%clk 0:02:04]} 25. Ke2 {[%clk 0:01:22]}  Re5+ {[%clk 0:02:03]} 26. Kd1 {[%clk 0:01:22]}  Rf5 {[%clk 0:02:02]} 27. Nd3 {[%clk 0:01:22]}  Rd5 {[%clk 0:02:00]} 28. Ke2 {[%clk 0:01:20]}  Rf5 {[%clk 0:02:00]} 29. f3 {[%clk 0:01:19]}  Rg5 {[%clk 0:02:00]} 30. Nf2 {[%clk 0:01:17]}  Rg2 {[%clk 0:01:39]} 31. Kf1 {[%clk 0:01:17]}  Rg7 {[%clk 0:01:36]} 32. Ne4+ {[%clk 0:01:18]}  Ke5 {[%clk 0:01:37]} 33. d4+ {[%clk 0:01:01]}  Kd5 {[%clk 0:01:32]} 34. Kf2 {[%clk 0:01:01]}  Be7 {[%clk 0:01:23]} 35. Rd1 {[%clk 0:00:51]}  e5 {[%clk 0:01:16]} 36. dxe5+ {[%clk 0:00:39]}  Kxe5 {[%clk 0:01:16]} 37. Ke3 {[%clk 0:00:39]}  Ke6 {[%clk 0:01:07]} 38. Rd2 {[%clk 0:00:24]}  Bg5+ {[%clk 0:01:04]} 39. f4 {[%clk 0:00:24]}  Be7 {[%clk 0:01:03]} 40. Kf3 {[%clk 0:00:23]}  Rg1 {[%clk 0:00:55]} 41. Ng3 {[%clk 0:00:21]}  h4 {[%clk 0:00:47]} 42. Re2+ {[%clk 0:00:21]}  Kf6 {[%clk 0:00:44]} 43. Ne4+ {[%clk 0:00:20]}  Kf7 {[%clk 0:00:40]} 44. f5 {[%clk 0:00:16]}  c5 {[%clk 0:00:31]} 45. Kf4 {[%clk 0:00:16]}  b5 {[%clk 0:00:28]} 46. Ke5 {[%clk 0:00:16]}  c4 {[%clk 0:00:18]} 47. bxc4 {[%clk 0:00:14]}  bxc4 {[%clk 0:00:18]} 48. Rc2 {[%clk 0:00:15]}  Ra1 {[%clk 0:00:15]} 49. f6 {[%clk 0:00:08]}  Bd8 {[%clk 0:00:13]} 50. Nd6+ {[%clk 0:00:04]}  Kf8 {[%clk 0:00:10]} 51. Re2 {[%clk 0:00:02]}  Rf1 {[%clk 0:00:08]} 52. Ne4 {[%clk 0:00:02]}  c3 {[%clk 0:00:06]} 53. Rc2 {[%clk 0:00:02]}  Rf3 {[%clk 0:00:06]} 54. Rxc3 {[%clk 0:00:02]}  Rxc3 {[%clk 0:00:05]} 55. Nxc3 {[%clk 0:00:02]}  Kf7 {[%clk 0:00:02]} 56. Kf5 {[%clk 0:00:03]}  a5 {[%clk 0:00:03]} 57. Ne4 {[%clk 0:00:03]}  a4 {[%clk 0:00:03]} 58. Ng5+ {[%clk 0:00:03]}  Kf8 {[%clk 0:00:03]} 59. Ne6+ {[%clk 0:00:04]}  Ke8 {[%clk 0:00:03]} 60. Nxd8 {[%clk 0:00:04]}  Kxd8 {[%clk 0:00:03]} 61. Kg6 {[%clk 0:00:05]}  Kd7 {[%clk 0:00:03]} 62. Kg7 {[%clk 0:00:06]}  Ke6 {[%clk 0:00:04]} 63. f7 {[%clk 0:00:07]}  Kd5 {[%clk 0:00:04]} 64. f8=Q {[%clk 0:00:07]}  Kc4 {[%clk 0:00:05]} 65. Qa3 {[%clk 0:00:08]}  Kb5 {[%clk 0:00:05]} 66. Qe3 {[%clk 0:00:08]}  Kb4 {[%clk 0:00:05]} 67. Qf4+ {[%clk 0:00:08]}  Ka3 {[%clk 0:00:06]} 68. Qxh4 {[%clk 0:00:09]}  Kb2 {[%clk 0:00:03]} 69. Qxa4 {[%clk 0:00:09]}  Ka1 {[%clk 0:00:03]} 70. Qb5 {[%clk 0:00:10]} 1-0


[Site "https://www.chess.com"]

[Event "Titled Tuesday Blitz January 17 Early 2023"]
[White "Wagner, Dennis"]
[Black "Gatterer, Florian"]
[WhiteFideId "24650684"]
[BlackFideId "811688"]
[WhiteElo "2595"]
[BlackElo "2170"]
[Result "1-0"]
[Round "03"]
[TimeControl "180+2"]
[Date "2023.01.17"]
[WhiteClock "0:00:06"]
[BlackClock "0:00:13"]

1. d4 {[%clk 0:03:00]}  Nf6 {[%clk 0:02:59]} 2. Nf3 {[%clk 0:03:00]}  d5 {[%clk 0:02:58]} 3. c4 {[%clk 0:03:00]}  e6 {[%clk 0:02:58]} 4. g3 {[%clk 0:03:00]}  dxc4 {[%clk 0:02:57]} 5. Bg2 {[%clk 0:03:00]}  c5 {[%clk 0:02:58]} 6. O-O {[%clk 0:02:59]}  Nc6 {[%clk 0:02:58]} 7. dxc5 {[%clk 0:02:54]}  Qxd1 {[%clk 0:02:57]} 8. Rxd1 {[%clk 0:02:55]}  Bxc5 {[%clk 0:02:56]} 9. Nfd2 {[%clk 0:02:41]}  Na5 {[%clk 0:02:51]} 10. Na3 {[%clk 0:02:40]}  c3 {[%clk 0:02:33]} 11. bxc3 {[%clk 0:02:33]}  O-O {[%clk 0:02:33]} 12. Nb3 {[%clk 0:02:30]}  Bb6 {[%clk 0:02:23]} 13. Nxa5 {[%clk 0:02:04]}  Bxa5 {[%clk 0:02:23]} 14. Nc4 {[%clk 0:02:05]}  Bxc3 {[%clk 0:02:07]} 15. Rb1 {[%clk 0:02:05]}  e5 {[%clk 0:02:01]} 16. Ba3 {[%clk 0:02:01]}  Re8 {[%clk 0:01:49]} 17. Nd6 {[%clk 0:02:01]}  Rd8 {[%clk 0:01:45]} 18. h3 {[%clk 0:00:57]}  h6 {[%clk 0:01:44]} 19. e3 {[%clk 0:00:57]}  Rb8 {[%clk 0:01:02]} 20. g4 {[%clk 0:00:56]}  Ba5 {[%clk 0:00:58]} 21. Rdc1 {[%clk 0:00:20]}  Bb6 {[%clk 0:00:48]} 22. Nxc8 {[%clk 0:00:11]}  Rdxc8 {[%clk 0:00:48]} 23. Bd6 {[%clk 0:00:11]}  Rxc1+ {[%clk 0:00:44]} 24. Rxc1 {[%clk 0:00:11]}  Re8 {[%clk 0:00:34]} 25. Bxb7 {[%clk 0:00:10]}  e4 {[%clk 0:00:29]} 26. a4 {[%clk 0:00:09]}  Re6 {[%clk 0:00:27]} 27. Rc8+ {[%clk 0:00:08]}  Kh7 {[%clk 0:00:26]} 28. Bg3 {[%clk 0:00:07]}  Re7 {[%clk 0:00:23]} 29. Bc6 {[%clk 0:00:07]}  Re6 {[%clk 0:00:21]} 30. Kg2 {[%clk 0:00:07]}  g5 {[%clk 0:00:18]} 31. Bb7 {[%clk 0:00:06]}  Re7 {[%clk 0:00:17]} 32. Ba6 {[%clk 0:00:06]}  Re6 {[%clk 0:00:17]} 33. Bc4 {[%clk 0:00:06]}  Re7 {[%clk 0:00:17]} 34. Rf8 {[%clk 0:00:06]}  Kg7 {[%clk 0:00:16]} 35. Rc8 {[%clk 0:00:06]}  Rd7 {[%clk 0:00:15]} 36. Bb3 {[%clk 0:00:07]}  Re7 {[%clk 0:00:16]} 37. Bd6 {[%clk 0:00:06]}  Rd7 {[%clk 0:00:15]} 38. Be5 {[%clk 0:00:07]}  Re7 {[%clk 0:00:16]} 39. Bc3 {[%clk 0:00:06]}  Kg6 {[%clk 0:00:13]} 40. Rc6 {[%clk 0:00:06]} 1-0


[Site "https://www.chess.com"]

[Event "Titled Tuesday Blitz January 17 Early 2023"]
[White "Tsotsonava, Elene"]
[Black "Srihari L R"]
[WhiteFideId "13615939"]
[BlackFideId "46617116"]
[WhiteElo "2053"]
[BlackElo "2416"]
[Result "0-1"]
[Round "03"]
[TimeControl "180+2"]
[Date "2023.01.17"]
[WhiteClock "0:00:02"]
[BlackClock "0:00:08"]

1. e4 {[%clk 0:02:59]}  c5 {[%clk 0:02:57]} 2. Nf3 {[%clk 0:02:59]}  Nf6 {[%clk 0:02:48]} 3. Nc3 {[%clk 0:02:59]}  d6 {[%clk 0:02:47]} 4. d4 {[%clk 0:02:59]}  cxd4 {[%clk 0:02:48]} 5. Nxd4 {[%clk 0:03:00]}  Nc6 {[%clk 0:02:48]} 6. Bg5 {[%clk 0:02:58]}  e6 {[%clk 0:02:45]} 7. Qd2 {[%clk 0:02:58]}  Be7 {[%clk 0:02:44]} 8. O-O-O {[%clk 0:02:57]}  a6 {[%clk 0:02:41]} 9. f4 {[%clk 0:02:57]}  Qc7 {[%clk 0:02:35]} 10. Be2 {[%clk 0:02:55]}  Bd7 {[%clk 0:02:33]} 11. Bf3 {[%clk 0:02:55]}  Rc8 {[%clk 0:02:23]} 12. Kb1 {[%clk 0:02:53]}  b5 {[%clk 0:02:16]} 13. Nxc6 {[%clk 0:02:19]}  Bxc6 {[%clk 0:02:16]} 14. e5 {[%clk 0:02:19]}  Bxf3 {[%clk 0:01:22]} 15. gxf3 {[%clk 0:02:20]}  dxe5 {[%clk 0:01:21]} 16. fxe5 {[%clk 0:02:19]}  Nd7 {[%clk 0:00:50]} 17. Bxe7 {[%clk 0:02:17]}  Kxe7 {[%clk 0:00:51]} 18. Qg5+ {[%clk 0:01:50]}  Kf8 {[%clk 0:00:49]} 19. Rhg1 {[%clk 0:01:48]}  Rg8 {[%clk 0:00:44]} 20. f4 {[%clk 0:01:28]}  b4 {[%clk 0:00:42]} 21. Ne4 {[%clk 0:01:28]}  Qxc2+ {[%clk 0:00:31]} 22. Ka1 {[%clk 0:01:27]}  h6 {[%clk 0:00:30]} 23. Qg3 {[%clk 0:01:15]}  Qxe4 {[%clk 0:00:26]} 24. Rxd7 {[%clk 0:01:14]}  g5 {[%clk 0:00:26]} 25. Qh3 {[%clk 0:00:38]}  Rg6 {[%clk 0:00:20]} 26. fxg5 {[%clk 0:00:35]}  Qxe5 {[%clk 0:00:10]} 27. Rf1 {[%clk 0:00:33]}  Qf5 {[%clk 0:00:08]} 28. Qxf5 {[%clk 0:00:09]}  exf5 {[%clk 0:00:07]} 29. gxh6 {[%clk 0:00:10]}  Rxh6 {[%clk 0:00:07]} 30. Rd5 {[%clk 0:00:09]}  Rxh2 {[%clk 0:00:05]} 31. Rdxf5 {[%clk 0:00:08]}  Rc7 {[%clk 0:00:06]} 32. Kb1 {[%clk 0:00:08]}  a5 {[%clk 0:00:06]} 33. R5f2 {[%clk 0:00:06]}  Rxf2 {[%clk 0:00:05]} 34. Rxf2 {[%clk 0:00:07]}  Rc5 {[%clk 0:00:05]} 35. a3 {[%clk 0:00:07]}  bxa3 {[%clk 0:00:04]} 36. bxa3 {[%clk 0:00:08]}  Ke7 {[%clk 0:00:05]} 37. Kb2 {[%clk 0:00:08]}  f5 {[%clk 0:00:05]} 38. Kb3 {[%clk 0:00:08]}  Kf6 {[%clk 0:00:05]} 39. Rh2 {[%clk 0:00:08]}  Kg5 {[%clk 0:00:05]} 40. Rg2+ {[%clk 0:00:09]}  Kf4 {[%clk 0:00:05]} 41. Rg8 {[%clk 0:00:10]}  Ke3 {[%clk 0:00:05]} 42. Re8+ {[%clk 0:00:10]}  Kf3 {[%clk 0:00:05]} 43. Rf8 {[%clk 0:00:10]}  f4 {[%clk 0:00:06]} 44. a4 {[%clk 0:00:10]}  Re5 {[%clk 0:00:06]} 45. Kc4 {[%clk 0:00:10]}  Ke3 {[%clk 0:00:06]} 46. Rb8 {[%clk 0:00:07]}  f3 {[%clk 0:00:06]} 47. Rb3+ {[%clk 0:00:07]}  Kf4 {[%clk 0:00:06]} 48. Rb1 {[%clk 0:00:02]}  f2 {[%clk 0:00:06]} 49. Rf1 {[%clk 0:00:01]}  Kf3 {[%clk 0:00:06]} 50. Kd4 {[%clk 0:00:02]}  Re1 {[%clk 0:00:06]} 51. Rxf2+ {[%clk 0:00:02]}  Kxf2 {[%clk 0:00:07]} 52. Kc4 {[%clk 0:00:03]}  Rb1 {[%clk 0:00:07]} 53. Kc5 {[%clk 0:00:02]}  Rb4 {[%clk 0:00:08]} 0-1


[Site "https://www.chess.com"]